bitfinex/quotes_SOLUSD_20250607
["timestamp","ask_amount","ask_price","bid_price","bid_amount"]
[1749304807323,4.92073736,152.01,152.0,11.65857712]
[1749304809229,4.92073736,152.01,152.0,5.07962976]
[1749304811221,4.92073736,152.01,152.0,11.65857712]
[1749304825332,4.92073736,152.01,152.0,6.57894736]
[1749304825532,4.92073736,152.01,152.0,11.65857712]
[1749304830347,6.14482544,152.06,152.0,11.65857712]
[1749304830532,4.92032301,152.05,152.02,5.07962976]
[1749304830732,4.92032301,152.04,152.03,6.57764914]
[1749304837437,4.9194812,152.04,152.03,6.57764914]
[1749304841158,4.9194812,152.04,152.03,5.07962976]
[1749304841348,4.9194812,152.04,152.02,5.07962976]
[1749304841660,4.9194812,152.03,152.02,5.07962976]
[1749304843437,4.9194812,152.03,152.02,11.65771159]
[1749304846042,4.9194812,152.03,152.02,6.57808183]
[1749304846265,4.9194812,152.03,152.02,11.65771159]
[1749304851971,4.9194812,152.03,152.02,6.57808183]
[1749304852267,4.9194812,152.03,152.02,11.65771159]
[1749304852858,18.64964886,152.06,152.02,11.65771159]
[1749304853060,4.91879205,152.05,152.02,11.65771159]
[1749304853371,4.91879205,152.04,152.02,11.65771159]
[1749304853667,25.14964886,152.06,152.02,11.65771159]
[1749304853846,4.91836815,152.05,152.02,11.65771159]
[1749304854053,4.91836815,152.04,152.02,11.65771159]
[1749304854359,4.91836815,152.03,152.02,11.65771159]
[1749304857387,4.91809179,152.03,152.02,6.57808183]
[1749304857681,4.91809179,152.03,152.02,11.65771159]
[1749304864055,4.91809179,152.03,152.02,6.57808183]
[1749304864752,4.91809179,152.03,152.02,11.65771159]
[1749304867693,4.91809179,152.03,152.01,10.48]
[1749304867860,4.91809179,152.02,152.01,10.48]
[1749304870777,23.56774065,152.02,152.01,10.48]
[1749304870982,28.64737041,152.02,152.01,10.48]
[1749304871292,23.56774065,152.02,152.01,10.48]
[1749304872576,30.06774065,152.02,152.01,10.48]
[1749304872883,23.56774065,152.02,152.01,10.48]
[1749304877473,30.06774065,152.02,152.01,10.48]
[1749304886894,30.06774065,152.02,152.0,6.57883457]
[1749304887096,4.91809179,152.01,152.0,6.57883457]
[1749304891198,4.91809179,152.01,151.99,6.57938022]
[1749304891393,25.14964886,152.02,151.99,6.57938022]
[1749304891594,4.90444912,152.01,151.99,11.65900998]
[1749304891884,18.64964886,152.03,152.0,5.07962976]
[1749304892086,4.90462225,152.02,152.0,5.07962976]
[1749304892285,4.90462225,152.01,152.0,5.07962976]
[1749304892507,4.90462225,152.02,152.0,5.07962976]
[1749304892713,18.64964886,152.03,152.0,5.07962976]
[1749304892714,4.90462225,152.01,152.0,5.07962976]
[1749304893218,4.90462225,152.02,152.01,6.57851457]
[1749304897614,4.90462225,152.02,151.99,6.57938022]
[1749304897818,4.90462225,152.01,151.99,11.65900998]
[1749304898125,18.64964886,152.03,151.99,6.57938022]
[1749304898318,4.90592242,152.02,151.99,11.65900998]
[1749304898625,4.90592242,152.01,151.99,11.65900998]
[1749304898794,3.7,152.02,151.99,11.65900998]
[1749304898994,4.90663131,152.01,151.99,11.65900998]
[1749304899196,18.64964886,152.03,151.99,11.65900998]
[1749304899391,4.90685774,152.02,151.99,11.65900998]
[1749304899623,4.90685774,152.01,151.99,11.65900998]
[1749304899926,4.90685774,152.0,151.99,11.65900998]
[1749304901404,4.90685774,152.02,152.01,26.0]
[1749304901610,4.90685774,152.02,152.0,5.07962976]
[1749304901814,4.90685774,152.01,151.99,11.65900998]
[1749304902012,18.64964886,152.03,151.99,11.65900998]
[1749304902013,23.72927862,152.03,152.02,26.0]
[1749304902210,28.63707124,152.03,152.0,26.0]
[1749304902409,23.55744148,152.02,152.01,26.0]
[1749304902617,23.55774867,152.02,152.01,26.0]
[1749304903237,23.55774867,152.02,151.99,37.65900998]
[1749304903406,4.90809981,152.01,151.99,37.65900998]
[1749304903603,18.64964886,152.02,151.99,37.65900998]
[1749304903916,4.90809975,152.01,151.99,37.65900998]
[1749304904115,18.64964886,152.02,151.99,37.65900998]
[1749304904317,4.90808994,152.01,151.99,37.65900998]
[1749304904516,18.64964886,152.02,151.99,37.65900998]
[1749304904814,4.90856442,152.01,151.99,37.65900998]
[1749304905114,18.64964886,152.02,151.99,37.65900998]
[1749304905312,4.90839002,152.01,151.99,37.65900998]
[1749304905529,18.64964886,152.02,151.99,37.65900998]
[1749304905731,4.90850212,152.01,151.99,37.65900998]
[1749304906020,18.64964886,152.02,151.99,37.65900998]
[1749304906230,4.90848383,152.01,151.99,37.65900998]
[1749304906405,18.64964886,152.02,151.99,37.65900998]
[1749304906606,4.90912138,152.01,151.99,37.65900998]
[1749304906810,4.90912138,152.0,151.99,37.65900998]
[1749304907011,4.90912138,152.0,151.99,32.57938022]
[1749304913336,4.90912138,152.0,151.99,6.57938022]
[1749304914007,4.90912138,152.0,151.99,11.65900998]
[1749304916131,4.90912138,152.0,151.99,6.57938022]
[1749304916335,4.90912138,152.0,151.99,11.65900998]
[1749304917213,4.90912138,152.0,151.98,22.11934386]
[1749304917409,4.90912138,151.99,151.98,22.11934386]
[1749304917835,4.90912138,151.99,151.98,17.0397141]
[1749304921128,4.90912138,151.99,151.98,22.11934386]
[1749304922425,4.90912138,151.99,151.98,10.46]
[1749304922628,9.98875114,151.99,151.95,6.58098174]
[1749304922949,28.6384,151.98,151.94,22.1210338]
[1749304923116,4.90912138,151.97,151.94,10.46]
[1749304923311,23.72927862,151.95,151.94,10.46]
[1749304923514,23.72927862,151.95,151.9,53.54463976]
[1749304923515,9.98875114,151.95,151.9,53.54463976]
[1749304923722,9.98875114,151.94,151.9,53.54463976]
[1749304923961,4.90912138,151.93,151.9,53.54463976]
[1749304924130,4.90912138,151.92,151.9,53.54463976]
[1749304924345,4.90912138,151.91,151.9,10.54501]
[1749304924646,23.55877024,151.91,151.9,10.54501]
[1749304925350,28.6384,151.91,151.9,0.08501]
[1749304925530,23.55877024,151.91,151.9,0.08501]
[1749304926031,28.6384,151.91,151.9,0.08501]
[1749304926354,23.72927862,151.91,151.9,0.08501]
[1749304926728,28.6384,151.91,151.9,0.08501]
[1749304926938,29.7384,151.91,151.9,0.08501]
[1749304927244,24.82927862,151.91,151.9,0.08501]
[1749304927621,31.2955,151.91,151.9,0.08501]
[1749304928242,26.38637862,151.91,151.9,0.08501]
[1749304928440,32.96922372,151.91,151.9,0.08501]
[1749304928839,73.30922372,151.91,151.9,0.08501]
[1749304929045,78.2183451,151.91,151.9,0.08501]
[1749304929645,44.64964886,151.87,151.83,6.58631364]
[1749304929954,18.64964886,151.84,151.83,6.58631364]
[1749304930324,18.64964886,151.84,151.81,5.07962976]
[1749304930325,5.07962976,151.84,151.81,6.58718134]
[1749304931364,5.07962976,151.84,151.8,6.58761528]
[1749304931658,5.07962976,151.84,151.8,11.66724504]
[1749304932242,5.07962976,151.84,151.8,6.58761528]
[1749304932420,5.07962976,151.83,151.8,6.58761528]
[1749304932622,18.64964886,151.82,151.8,6.58761528]
[1749304932845,18.64964886,151.83,151.8,11.66724504]
[1749304933233,18.64964886,151.83,151.8,14.54410547]
[1749304933549,26.60613905,151.83,151.8,6.58761528]
[1749304934578,18.64964886,151.83,151.8,14.54410547]
[1749304935363,18.64964886,151.83,151.8,6.58761528]
[1749304935553,6.58447545,151.88,151.8,14.54410547]
[1749304935765,18.64964886,151.84,151.8,14.54410547]
[1749304936062,26.60613905,151.84,151.8,6.58761528]
[1749304936243,7.95649019,151.83,151.8,6.58761528]
[1749304936759,18.64964886,151.82,151.8,6.58761528]
[1749304936935,7.95649019,151.83,151.8,14.54410547]
[1749304936936,18.64964886,151.83,151.8,14.54410547]
[1749304939063,18.64964886,151.83,151.8,6.58761528]
[1749304939269,25.23393169,151.88,151.8,14.54410547]
[1749304939446,18.64964886,151.84,151.8,14.54410547]
[1749304939640,26.60613905,151.84,151.8,14.54410547]
[1749304939857,26.60613905,151.84,151.8,6.58761528]
[1749304942752,26.60613905,151.84,151.8,14.54410547]
[1749304943967,26.60613905,151.84,151.8,6.58761528]
[1749304945589,18.64964886,151.84,151.8,14.54410547]
[1749304947558,26.60613905,151.84,151.8,14.54410547]
[1749304948076,18.64964886,151.84,151.8,14.54410547]
[1749304948276,26.60613905,151.84,151.8,14.54410547]
[1749304948457,18.64964886,151.84,151.8,14.54410547]
[1749304949573,1.542,151.86,151.82,7.95649019]
[1749304949771,1.542,151.86,151.8,23.05665348]
[1749304949772,18.64964886,151.86,151.83,7.95649019]
[1749304950872,18.64964886,151.86,151.82,7.95649019]
[1749304951453,6.5,151.85,151.82,7.95649019]
[1749304951775,18.64964886,151.86,151.83,6.58631364]
[1749304952479,26.60613905,151.86,151.83,6.58631364]
[1749304953188,23.73991117,151.86,151.83,6.58631364]
[1749304954169,18.64964886,151.86,151.83,11.67657595]
[1749304954346,18.64964886,151.86,151.83,6.58631364]
[1749304955560,23.73991117,151.86,151.82,6.58660056]
[1749304955776,5.09026231,151.85,151.82,6.58660056]
[1749304956271,5.09026231,151.83,151.8,6.58761528]
[1749304956863,18.64964886,151.82,151.8,6.58761528]
[1749304957270,5.09026231,151.82,151.79,10.46]
[1749304957782,18.64964886,151.81,151.79,10.46]
[1749304957980,23.73991117,151.8,151.79,10.46]
[1749304958281,23.73991117,151.8,151.78,6.58822497]
[1749304958781,23.73991117,151.8,151.76,6.5893516]
[1749304959160,23.73991117,151.79,151.76,6.5893516]
[1749304959681,23.73991117,151.79,151.75,22.13988322]
[1749304959853,23.73991117,151.79,151.75,5.09026231]
[1749304960056,18.64964886,151.77,151.74,22.14045078]
[1749304960256,18.64964886,151.77,151.74,10.46]
[1749304960602,23.73991117,151.77,151.74,17.05012184]
[1749304961078,18.64964886,151.77,151.74,17.05012184]
[1749304961270,18.64964886,151.77,151.74,25.01308909]
[1749304961658,18.64964886,151.78,151.74,25.01308909]
[1749304963156,7.96296725,151.8,151.75,7.96296725]
[1749304963357,26.61261611,151.81,151.76,7.96296725]
[1749304963568,26.61261611,151.81,151.77,6.58891744]
[1749304965682,7.96296725,151.8,151.77,6.58891744]
[1749304966681,6.5,151.79,151.77,6.58891744]
[1749304966858,7.96296725,151.8,151.77,6.58891744]
[1749304968157,4.85131262,151.79,151.77,6.58891744]
[1749304968580,4.85131262,151.79,151.78,7.96296725]
[1749304968883,18.64964886,151.81,151.77,14.55188469]
[1749304968884,23.53409012,151.81,151.77,14.55188469]
[1749304969186,18.64964886,151.81,151.77,14.55188469]
[1749304969375,23.53741875,151.81,151.77,14.55188469]
[1749304970284,18.64964886,151.81,151.77,14.55188469]
[1749304972076,4.89148198,151.8,151.77,14.55188469]
[1749304972490,18.64964886,151.81,151.77,14.55188469]
[1749304972788,4.89298822,151.8,151.77,14.55188469]
[1749304973286,4.89298822,151.8,151.78,7.96296725]
[1749304973593,18.64964886,151.81,151.78,7.96296725]
[1749304974087,67.31077001,151.85,151.8,7.96296725]
[1749304974265,23.54363317,151.84,151.82,7.96296725]
[1749304974464,51.563278,151.85,151.82,7.96296725]
[1749304974465,23.54363317,151.83,151.82,7.96296725]
[1749304974787,23.54363317,151.84,151.82,7.96296725]
[1749304974989,18.64964886,151.84,151.79,10.46]
[1749304975185,18.64964886,151.84,151.83,14.54928089]
[1749304975388,23.543145,151.84,151.83,14.54928089]
[1749304976190,4.89349614,151.84,151.83,14.54928089]
[1749304976491,56.45571807,151.85,151.83,14.54928089]
[1749304976680,51.563278,151.85,151.84,7.96296725]
[1749304977262,4.89270645,151.86,151.84,14.54884712]
[1749304977467,18.64964886,151.87,151.85,7.96296725]
[1749304977799,23.54235531,151.87,151.85,7.96296725]
[1749304978107,18.64964886,151.87,151.85,7.96296725]
[1749304978268,23.54235531,151.87,151.85,7.96296725]
[1749304978468,18.64964886,151.87,151.85,7.96296725]
[1749304978670,23.54235531,151.87,151.85,7.96296725]
[1749304978875,18.64964886,151.88,151.85,7.96296725]
[1749304979281,23.54235531,151.88,151.85,7.96296725]
[1749304979487,18.64964886,151.88,151.85,7.96296725]
[1749304979987,1.1,151.87,151.85,7.96296725]
[1749304980490,1.1,151.87,151.85,14.54824067]
[1749304981488,1.1,151.87,151.86,7.96296725]
[1749304981787,18.64964886,151.89,151.86,7.96296725]
[1749304981993,18.64964886,151.89,151.87,7.96296725]
[1749304982291,23.54235531,151.91,151.88,7.96296725]
[1749304983281,23.54235531,151.91,151.87,7.96296725]
[1749304984786,30.12524386,151.91,151.87,7.96296725]
[1749304985292,23.54235531,151.91,151.87,7.96296725]
[1749304986383,18.64964886,151.9,151.86,48.30296725]
[1749304986781,18.64964886,151.9,151.86,7.96296725]
[1749304986984,18.64964886,151.87,151.84,10.46]
[1749304987184,18.64964886,151.85,151.84,10.46]
[1749304989695,26.61261611,151.85,151.81,6.58704193]
[1749304989903,26.61261611,151.85,151.8,18.40296725]
[1749304990097,18.64964886,151.83,151.8,10.44]
[1749304990797,18.64964886,151.83,151.8,18.40296725]
[1749304991702,18.64964886,151.83,151.8,7.96296725]
[1749304992203,18.64964886,151.83,151.78,56.85031987]
[1749304992385,18.64964886,151.83,151.8,7.96296725]
[1749304993377,7.96296725,151.83,151.79,14.55101652]
[1749304993590,26.61261611,151.82,151.79,6.58804927]
[1749304993791,26.61261611,151.82,151.78,17.02832413]
[1749304994704,26.61261611,151.82,151.78,24.99129138]
[1749304994905,18.64964886,151.82,151.78,24.99129138]
[1749304996902,18.64964886,151.82,151.79,14.55085375]
[1749304997403,25.14964886,151.82,151.79,14.55085375]
[1749304997710,18.64964886,151.82,151.79,14.55085375]
[1749304998171,7.96296725,151.83,151.79,14.55085375]
[1749304998301,18.64964886,151.82,151.79,14.55085375]
[1749304998978,26.61261611,151.84,151.79,14.55085375]
[1749304999184,18.64964886,151.84,151.79,14.55085375]
[1749304999477,18.64964886,151.82,151.79,14.55085375]
[1749305000883,18.64964886,151.82,151.8,7.96296725]
[1749305001484,18.64964886,151.82,151.79,14.55085375]
[1749305005824,18.64964886,151.82,151.79,6.5878865]
[1749305006207,18.64964886,151.82,151.79,14.55085375]
[1749305008132,4.89270645,151.86,151.81,7.96296725]
[1749305008310,1.6588,151.89,151.85,7.96296725]
[1749305008507,14.50994152,151.89,151.84,7.96296725]
[1749305008813,7.96296725,151.87,151.83,10.44]
[1749305010614,7.96296725,151.87,151.82,14.54964331]
[1749305011114,18.64964886,151.85,151.81,65.33004083]
[1749305014436,18.64964886,151.85,151.81,58.74296725]
[1749305014624,18.64964886,151.85,151.81,10.44]
[1749305014625,18.64964886,151.83,151.81,10.44]
[1749305015716,26.61261611,151.82,151.81,10.44]
[1749305016318,18.64964886,151.81,151.78,14.55143164]
[1749305016730,18.64964886,151.82,151.78,14.55143164]
[1749305017834,26.61261611,151.82,151.78,14.55143164]
[1749305018637,18.64964886,151.82,151.78,14.55143164]
[1749305019234,26.61261611,151.82,151.78,14.55143164]
[1749305020034,25.14964886,151.82,151.78,14.55143164]
[1749305020625,18.64964886,151.82,151.78,14.55143164]
[1749305021239,18.64964886,151.82,151.79,7.96296725]
[1749305022540,18.64964886,151.82,151.79,14.55083132]
[1749305023542,18.64964886,151.82,151.79,6.58786407]
[1749305026152,18.64964886,151.82,151.78,7.96296725]
[1749305026153,26.61261611,151.82,151.78,6.58835925]
[1749305026444,26.61261611,151.82,151.78,14.5513265]
[1749305027344,31.50079038,151.82,151.78,14.5513265]
[1749305027531,26.61261611,151.82,151.78,14.5513265]
[1749305027853,31.50079038,151.82,151.78,14.5513265]
[1749305028187,26.61261611,151.82,151.78,14.5513265]
[1749305028353,31.50079038,151.82,151.78,14.5513265]
[1749305028515,26.61261611,151.82,151.78,6.58835925]
[1749305028717,7.96296725,151.81,151.78,6.58835925]
[1749305028916,7.96296725,151.81,151.78,14.5513265]
[1749305029156,31.50079038,151.82,151.78,6.58835925]
[1749305029321,4.88817427,151.81,151.78,14.5513265]
[1749305030127,11.38817427,151.81,151.78,14.5513265]
[1749305030948,4.88817427,151.81,151.8,7.96296725]
[1749305031324,4.88817427,151.83,151.8,7.96296725]
[1749305031539,4.88817427,151.82,151.8,7.96296725]
[1749305031739,18.64964886,151.83,151.8,7.96296725]
[1749305031947,4.88817427,151.82,151.8,7.96296725]
[1749305032357,18.64964886,151.83,151.8,7.96296725]
[1749305032655,4.9009587,151.82,151.8,7.96296725]
[1749305033232,4.9009587,151.82,151.8,14.55016768]
[1749305035038,4.9009587,151.82,151.8,24.99016768]
[1749305038453,4.90284144,151.82,151.8,24.99016768]
[1749305040678,4.90284144,151.82,151.81,7.96296725]
[1749305040962,4.90293735,151.84,151.81,7.96296725]
[1749305041147,4.90293735,151.83,151.81,7.96296725]
[1749305041460,6.5,151.84,151.81,7.96296725]
[1749305041641,4.90295537,151.83,151.81,7.96296725]
[1749305041845,4.90295537,151.84,151.82,7.96296725]
[1749305042062,4.90295537,151.83,151.82,7.96296725]
[1749305042265,4.90295537,151.84,151.82,7.96296725]
[1749305042432,4.90295537,151.83,151.82,7.96296725]
[1749305042626,4.90295537,151.84,151.83,6.58631364]
[1749305043161,40.09809201,151.87,151.83,14.54928089]
[1749305043162,4.90295537,151.86,151.83,14.54928089]
[1749305043333,4.90295537,151.85,151.83,6.58631364]
[1749305043541,4.90295537,151.86,151.83,23.05209774]
[1749305043733,4.90295537,151.87,151.83,23.05209774]
[1749305043932,4.9036612,151.89,151.83,23.05209774]
[1749305044144,4.9036612,151.88,151.83,23.05209774]
[1749305044349,4.90196715,151.89,151.83,23.05209774]
[1749305044554,18.64964886,151.91,151.88,7.96296725]
[1749305044735,4.90161598,151.9,151.88,7.96296725]
[1749305044948,4.90161598,151.89,151.88,7.96296725]
[1749305045158,4.90161598,151.9,151.88,7.96296725]
[1749305045357,4.90161598,151.89,151.88,7.96296725]
[1749305045576,4.90161598,151.9,151.88,7.96296725]
[1749305045861,4.90161598,151.89,151.88,7.96296725]
[1749305046060,18.64964886,151.91,151.88,7.96296725]
[1749305046061,4.90161598,151.9,151.88,7.96296725]
[1749305046267,4.90161598,151.89,151.88,7.96296725]
[1749305046435,6.00161598,151.9,151.88,7.96296725]
[1749305046634,6.00161598,151.9,151.88,14.54700885]
[1749305047074,1.1,151.9,151.88,14.54700885]
[1749305051681,1.1,151.9,151.88,7.96296725]
[1749305052274,1.1,151.9,151.87,32.58451007]
[1749305052275,18.64964886,151.88,151.85,7.96296725]
[1749305052449,18.64964886,151.88,151.85,18.40296725]
[1749305052646,18.64964886,151.88,151.87,26.0]
[1749305053450,7.68342472,151.9,151.87,26.0]
[1749305053451,15.64639197,151.9,151.87,26.0]
[1749305053857,1.1,151.9,151.87,26.0]
[1749305054269,18.64964886,151.89,151.86,14.54783842]
[1749305055574,18.64964886,151.89,151.87,7.96296725]
[1749305057778,1.1,151.9,151.88,7.96296725]
[1749305059758,1.1,151.9,151.89,7.96296725]
[1749305061472,1.1,151.9,151.88,7.96296725]
[1749305063074,1.1,151.9,151.89,7.96296725]
[1749305063890,1.1,151.9,151.88,7.96296725]
[1749305070185,1.1,151.9,151.88,14.54690991]
[1749305071692,1.1,151.9,151.88,7.96296725]
[1749305072580,1.1,151.9,151.89,7.96296725]
[1749305072793,18.64964886,151.93,151.89,7.96296725]
[1749305072995,18.64964886,151.93,151.9,7.96296725]
[1749305077196,18.64964886,151.93,151.9,18.40296725]
[1749305077876,6.5,151.92,151.9,18.40296725]
[1749305078404,23.53476935,151.93,151.9,18.40296725]
[1749305078577,18.64964886,151.93,151.9,18.40296725]
[1749305079394,46.067217,151.94,151.9,24.98606813]
[1749305080106,38.10424975,151.94,151.91,7.96296725]
[1749305080993,38.10424975,151.94,151.91,14.54554499]
[1749305081313,33.21912926,151.94,151.92,7.96296725]
[1749305082585,38.10424975,151.94,151.92,7.96296725]
[1749305082905,33.21912926,151.94,151.92,14.5453472]
[1749305083107,38.10424975,151.94,151.93,7.96296725]
[1749305083285,33.21912926,151.94,151.93,7.96296725]
[1749305083481,4.88512049,151.95,151.93,7.96296725]
[1749305083685,4.89944668,151.95,151.93,7.96296725]
[1749305084509,4.89944668,151.94,151.93,7.96296725]
[1749305084693,4.89944668,151.95,151.93,7.96296725]
[1749305084895,4.89944668,151.94,151.93,7.96296725]
[1749305085118,4.89944668,151.95,151.93,7.96296725]
[1749305085414,4.89944668,151.94,151.93,7.96296725]
[1749305085596,4.89944668,151.95,151.93,7.96296725]
[1749305085801,4.89944668,151.94,151.93,7.96296725]
[1749305086025,12.70427462,151.98,151.93,14.54494579]
[1749305086026,4.89944668,151.95,151.93,14.54494579]
[1749305086185,4.89944668,151.97,151.94,7.96296725]
[1749305086385,4.89944668,151.96,151.95,7.96296725]
[1749305086601,4.89944668,151.97,151.95,7.96296725]
[1749305086816,4.89944668,151.96,151.95,7.96296725]
[1749305087138,4.89944668,151.98,151.95,58.70296725]
[1749305087223,4.89944668,151.99,151.97,7.96296725]
[1749305087432,23.54909554,152.01,151.98,7.96296725]
[1749305087618,4.89944668,152.0,151.98,7.96296725]
[1749305087788,18.64964886,152.01,151.96,6.58048897]
[1749305087789,4.89944668,151.99,151.97,7.96296725]
[1749305088112,4.89944668,152.0,151.97,7.96296725]
[1749305088417,4.89944668,151.99,151.97,7.96296725]
[1749305088584,18.64964886,152.01,151.98,7.96296725]
[1749305088585,4.89944668,152.01,151.98,7.96296725]
[1749305088778,156.46296725,152.02,151.98,7.96296725]
[1749305088779,4.89944668,152.0,151.98,7.96296725]
[1749305088979,4.89944668,152.01,151.98,7.96296725]
[1749305089179,4.89944668,152.0,151.98,7.96296725]
[1749305089403,4.89944668,152.01,151.98,7.96296725]
[1749305090007,4.89944668,152.0,151.97,7.96296725]
[1749305091382,19.44097508,152.01,151.97,7.96296725]
[1749305091992,14.5415284,152.01,151.97,7.96296725]
[1749305092206,19.43449745,152.01,151.95,57.32095615]
[1749305092403,19.43449745,152.01,151.97,7.96296725]
[1749305093188,14.5415284,152.01,151.97,7.96296725]
[1749305093410,19.43449745,152.01,151.97,7.96296725]
[1749305094292,14.5415284,152.01,151.97,7.96296725]
[1749305096292,6.57856115,152.01,151.98,7.96296725]
[1749305096812,25.22788342,152.02,151.98,7.96296725]
[1749305097199,30.12085247,152.02,151.98,7.96296725]
[1749305097403,25.22788342,152.02,151.98,7.96296725]
[1749305097609,18.64964886,152.02,151.99,7.96296725]
[1749305098811,33.19074946,152.02,151.98,7.96296725]
[1749305099693,38.08371851,152.02,151.97,7.96296725]
[1749305099889,33.19074946,152.02,151.98,7.96296725]
[1749305100090,33.19074946,152.02,151.96,6.58031461]
[1749305100285,18.64964886,152.0,151.91,24.29850744]
[1749305100490,25.22778221,152.02,151.94,7.96296725]
[1749305100491,7.96296725,151.99,151.94,7.96296725]
[1749305100801,7.96296725,151.99,151.95,7.96296725]
[1749305101000,24.64261791,152.01,151.97,7.96296725]
[1749305101318,27.71261611,152.01,151.97,18.38296725]
[1749305102192,7.96296725,152.0,151.97,10.42]
[1749305102891,26.61261611,152.01,151.97,10.42]
[1749305103711,4.88563406,152.03,151.97,24.96299283]
[1749305103915,18.64964886,152.01,151.98,7.96296725]
[1749305104090,18.64964886,152.02,151.98,14.54237248]
[1749305104294,18.64964886,152.02,151.99,7.96296725]
[1749305104517,12.84860131,152.03,151.99,7.96296725]
[1749305104896,4.88563406,152.03,151.99,7.96296725]
[1749305105103,18.64964886,152.03,152.0,7.96296725]
[1749305105620,30.88563406,152.04,152.0,7.96296725]
[1749305105817,33.96296725,152.04,152.0,7.96296725]
[1749305106195,40.54020595,152.04,152.0,7.96296725]
[1749305106407,45.42584001,152.04,152.0,7.96296725]
[1749305106725,33.96296725,152.04,152.0,7.96296725]
[1749305106897,38.84860131,152.04,152.0,7.96296725]
[1749305107218,40.54027069,152.04,152.0,7.96296725]
[1749305108721,40.54027069,152.04,151.98,6.57981313]
[1749305108900,40.54027069,152.04,152.0,7.96296725]
[1749305109306,4.88563406,152.05,152.01,7.96296725]
[1749305109502,23.53528292,152.06,152.03,7.96296725]
[1749305109715,7.96296725,152.04,152.02,10.42]
[1749305110224,7.96296725,152.05,152.02,10.42]
[1749305110523,12.84860131,152.05,152.02,10.42]
[1749305110704,7.96296725,152.05,152.02,10.42]
[1749305111023,18.64964886,152.06,152.04,7.96296725]
[1749305111421,18.64964886,152.06,152.03,7.96296725]
[1749305113123,6.57647338,152.06,152.03,7.96296725]
[1749305114427,14.53944063,152.06,152.02,10.42]
[1749305117111,26.61261611,152.07,152.02,24.96104208]
[1749305118043,18.64964886,152.07,152.04,7.96296725]
[1749305118332,27.547,152.08,152.05,7.96296725]
[1749305118333,18.64964886,152.08,152.05,7.96296725]
[1749305118531,18.64964886,152.09,152.05,7.96296725]
[1749305119930,18.64964886,152.09,152.05,14.53973148]
[1749305121048,7.96296725,152.07,152.03,6.57748814]
[1749305121350,18.64964886,152.06,152.02,18.38296725]
[1749305121648,7.96296725,152.06,152.02,18.38296725]
[1749305122273,7.96296725,152.06,152.02,24.96102364]
[1749305122274,18.64964886,152.06,152.02,24.96102364]
[1749305122849,18.64964886,152.06,152.02,7.96296725]
[1749305123058,18.64964886,152.06,152.03,10.42]
[1749305124567,26.61261611,152.06,152.03,10.42]
[1749305125565,33.18905553,152.06,152.03,10.42]
[1749305126154,26.61261611,152.06,152.03,10.42]
[1749305127045,7.96296725,152.04,152.03,10.42]
[1749305128843,7.96296725,152.05,152.03,10.42]
[1749305129249,18.64964886,152.06,152.03,10.42]
[1749305129250,7.96296725,152.04,152.03,10.42]
[1749305130266,18.64964886,152.06,152.03,10.42]
[1749305130461,7.96296725,152.05,152.03,10.42]
[1749305133755,7.96296725,152.05,152.03,16.99763142]
[1749305133959,7.96296725,152.05,152.03,10.42]
[1749305134156,18.64964886,152.06,152.03,10.42]
[1749305134359,7.96296725,152.06,152.03,16.9975965]
[1749305135378,7.96296725,152.06,152.03,10.42]
[1749305135553,14.46296725,152.06,152.03,10.42]
[1749305135878,7.96296725,152.06,152.03,10.42]
[1749305136369,12.84651868,152.06,152.03,10.42]
[1749305136874,7.96296725,152.06,152.03,10.42]
[1749305137047,12.84651868,152.06,152.03,10.42]
[1749305137244,7.96296725,152.06,152.03,10.42]
[1749305137468,12.84651868,152.06,152.03,10.42]
[1749305137659,7.96296725,152.06,152.03,16.99756482]
[1749305137957,12.84651868,152.06,152.03,16.99756482]
[1749305138158,7.96296725,152.06,152.03,16.99756482]
[1749305138359,12.84651868,152.06,152.03,16.99756482]
[1749305138557,7.96296725,152.06,152.03,16.99756482]
[1749305138755,12.84651868,152.06,152.03,16.99756482]
[1749305139077,7.96296725,152.06,152.03,16.99756482]
[1749305139278,12.84651868,152.06,152.03,16.99756482]
[1749305139465,7.96296725,152.06,152.03,16.99756482]
[1749305139666,12.84651868,152.06,152.03,16.99756482]
[1749305139975,7.96296725,152.06,152.03,10.42]
[1749305140155,4.88355143,152.05,152.03,10.42]
[1749305141084,12.84651868,152.06,152.03,10.42]
[1749305141285,4.88355143,152.05,152.03,10.42]
[1749305141657,12.84651868,152.06,152.03,10.42]
[1749305141863,4.88355143,152.05,152.03,16.99763058]
[1749305142082,7.96296725,152.06,152.03,16.99763058]
[1749305142382,12.84651868,152.06,152.03,16.99763058]
[1749305142686,7.96296725,152.06,152.03,16.99763058]
[1749305142860,12.84651868,152.06,152.03,16.99763058]
[1749305143061,7.96296725,152.06,152.03,16.99763058]
[1749305143261,12.84651868,152.06,152.03,16.99763058]
[1749305143476,7.96296725,152.06,152.03,16.99763058]
[1749305143686,12.84651868,152.06,152.03,16.99763058]